[Event "XIII Mediterranean Championship 2023"]
[Site "Castell-Platja d Aro"]
[Date "2023.11.05"]
[Round "2.28"]
[White "Giro Castellet, Esteve"]
[Black "Alonso Gimenez, Mauro"]
[Result "0-1"]
[ECO "A51"]
[WhiteElo "1633"]
[BlackElo "1978"]
[Annotator "NA RC"]
[PlyCount "84"]
[EventDate "2023.10.26"]
[EventType "swiss"]
[EventCountry "ESP"]
[SourceTitle "playchess.com"]
[Source "ChessBase"]
[SourceQuality "1"]
[TimeControl "5400+30"]

1. d4 {[%emt 1:31:00]} Nf6 {[%emt 1:31:00]} 2. c4 {[%emt 0:00:30]} e5 {[%emt 0:00:30]} 3. dxe5 {[%emt 0:00:30]} Ne4 {[%emt 0:00:30]} 4. Nf3 {[%emt 0:00:30]} Nc6 {[%emt 0:00:30]} 5. Qd5 {[%emt 0:00:30]} Nc5 {[%emt 0:00:30]} 6. a3 {[%emt 0:00:30]} d6 {[%emt 0:00:30]} 7. Bf4 {[%emt 0:00:30]} Be6 {[%emt 0:00:30]} 8. Qd1 {[%emt 0:00:30]} dxe5 {[%emt 0:00:30]} 9. Qxd8+ {[%emt 0:00:30]} Rxd8 {[%emt 0:00:30]} 10. Bxe5 {[%emt 0:00:30]} Nb3 {[%emt 0:00:30]} 11. Ra2 {[%emt 0:00:30]} Nxe5 {[%emt 0:00:30]} 12. Nxe5 {[%emt 0:00:30]} f6 {[%emt 0:00:30]} 13. Nf3 {[%emt 0:00:30]} Bxc4 {[%emt 0:00:30]} 14. e3 {[%emt 0:00:30]} Bf7 {[%emt 0:00:30]} 15. Nc3 {[%emt 0:00:30]} Be7 {[%emt 0:00:30]} 16. Be2 {[%emt 0:00:30]} O-O {[%emt 0:00:30]} 17. Bd1 {[%emt 0:00:30]} Nc1 {[%emt 0:00:30]} 18. Ra1 {[%emt 0:00:30]} Nd3+ {[%emt 0:00:30]} 19. Kf1 {[%emt 0:00:30]} Nxb2 {[%emt 0:00:30]} 20. Be2 {[%emt 0:00:30]} Nc4 {[%emt 0:00:30]} 21. g3 {[%emt 0:00:30]} a6 {[%emt 0:00:30]} 22. Kg2 {[%emt 0:00:30]} b5 {[%emt 0:00:30]} 23. Nd4 {[%emt 0:00:30]} Bc5 {[%emt 0:00:30]} 24. Rhd1 {[%emt 0:00:30]} Rd6 {[%emt 0:00:30]} 25. Bf3 {[%emt 0:00:30]} Bxd4 {[%emt 0:00:30]} 26. Rxd4 {[%emt 0:00:30]} Rxd4 {[%emt 0:00:30]} 27. exd4 {[%emt 0:00:30]} Rd8 {[%emt 0:00:30]} 28. d5 {[%emt 0:00:30]} Nd2 {[%emt 0:00:30]} 29. Bg4 {[%emt 0:00:30]} Kf8 {[%emt 0:00:30]} 30. Be6 {[%emt 0:00:30]} Bxe6 {[%emt 0:00:30]} 31. dxe6 {[%emt 0:00:30]} Ke7 {[%emt 0:00:30]} 32. Ne2 {[%emt 0:00:30]} Kxe6 {[%emt 0:00:30]} 33. Nf4+ {[%emt 0:00:30]} Kf7 {[%emt 0:00:30]} 34. Rd1 {[%emt 0:00:30]} c5 {[%emt 0:00:30]} 35. Ne2 {[%emt 0:00:30]} c4 {[%emt 0:00:30]} 36. f4 {[%emt 0:00:30]} a5 {[%emt 0:00:30]} 37. Nc3 {[%emt 0:00:30]} b4 {[%emt 0:00:30]} 38. axb4 {[%emt 0:00:30]} axb4 {[%emt 0:00:30]} 39. Nb1 {[%emt 0:00:30]} c3 {[%emt 0:00:30]} 40. Nxc3 {[%emt 0:00:30]} bxc3 {[%emt 0:00:30]} 41. Rc1 {[%emt 0:00:30]} Rc8 {[%emt 0:00:30]} 42. Kf2 {[%emt 0:00:30]} c2 {[%emt 0:00:30]} 0-1

[Event "XIII Mediterranean Championship 2023"]
[Site "Castell-Platja d Aro"]
[Date "2023.11.05"]
[Round "2.30"]
[White "Makka, Ioulia"]
[Black "Delbos, Jean-Louis"]
[Result "1-0"]
[ECO "C63"]
[WhiteElo "1900"]
[BlackElo "1573"]
[Annotator "NA RC"]
[PlyCount "23"]
[EventDate "2023.10.26"]
[EventType "swiss"]
[EventCountry "ESP"]
[SourceTitle "playchess.com"]
[Source "ChessBase"]
[SourceQuality "1"]
[TimeControl "5400+30"]

1. e4 {[%emt 1:31:00]} e5 {[%emt 1:31:00]} 2. Nf3 {[%emt 0:00:30]} Nc6 {[%emt 0:00:30]} 3. Bb5 {[%emt 0:00:30]} f5 {[%emt 0:00:30]} 4. d3 {[%emt 0:00:30]} Nf6 {[%emt 0:00:30]} 5. Qe2 {[%emt 0:00:30]} Nd4 {[%emt 0:00:30]} 6. Nxd4 {[%emt 0:00:30]} exd4 {[%emt 0:00:30]} 7. e5 {[%emt 0:00:30]} Nd5 {[%emt 0:00:30]} 8. O-O {[%emt 0:00:30]} Be7 {[%emt 0:00:30]} 9. Bc4 {[%emt 0:00:30]} Nb6 {[%emt 0:00:30]} 10. Bb3 {[%emt 0:00:30]} a5 {[%emt 0:00:30]} 11. a4 {[%emt 0:00:30]} Bg5 {[%emt 0:00:30]} 12. Qh5+ {[%emt 0:00:30]} 1-0

[Event "XIII Mediterranean Championship 2023"]
[Site "Castell-Platja d Aro"]
[Date "2023.11.05"]
[Round "2.31"]
[White "Vinolas Anglada, Laura"]
[Black "Burset Camps, Guillem"]
[Result "1-0"]
[ECO "C10"]
[WhiteElo "1884"]
[BlackElo "1408"]
[Annotator "NA RC"]
[PlyCount "63"]
[EventDate "2023.10.26"]
[EventType "swiss"]
[EventCountry "ESP"]
[SourceTitle "playchess.com"]
[Source "ChessBase"]
[SourceQuality "1"]
[TimeControl "5400+30"]

1. e4 {[%emt 0:00:03]} e6 {[%emt 0:05:49]} 2. d4 {[%emt 0:00:07]} d5 {[%emt 0:00:56]} 3. Nc3 {[%emt 0:00:14]} c5 {[%emt 1:25:15]} 4. exd5 {[%emt 0:10:31]} exd5 {[%emt 0:00:00]} 5. Nf3 {[%emt 0:02:15]} Be6 {[%emt 0:00:00]} 6. Bf4 {[%emt 0:18:58]} c4 {[%emt 0:00:00]} 7. Be2 {[%emt 0:03:33]} Nf6 {[%emt 0:00:00]} 8. O-O {[%emt 0:00:23]} Bd6 {[%emt 0:00:00]} 9. Bxd6 {[%emt 0:01:02]} Qxd6 {[%emt 0:00:00]} 10. b3 {[%emt 0:01:40]} O-O {[%emt 0:00:00]} 11. Qd2 {[%emt 0:06:06]} Nbd7 {[%emt 0:00:00]} 12. Rfd1 {[%emt 0:02:56]} cxb3 {[%emt 0:00:00]} 13. axb3 {[%emt 0:00:25]} a6 {[%emt 0:00:00]} 14. h3 {[%emt 0:03:57]} Rac8 {[%emt 0:00:00]} 15. Bd3 {[%emt 0:00:44]} Qb4 {[%emt 0:00:00]} 16. Ne2 {[%emt 0:01:18]} Qxd2 {[%emt 0:00:00]} 17. Nxd2 {[%emt 0:01:45]} Nb6 {[%emt 0:00:00]} 18. Rdc1 {[%emt 0:04:05]} Rc7 {[%emt 0:00:00]} 19. Nf1 {[%emt 0:06:55]} Nc8 {[%emt 0:00:00]} 20. Ne3 {[%emt 0:00:59]} Nd6 {[%emt 0:00:00]} 21. Ra5 {[%emt 0:01:10]} Rfc8 {[%emt 0:00:00]} 22. Nf4 {[%emt 0:02:20]} Rc3 {[%emt 0:00:00]} 23. Rd1 {[%emt 0:01:22]} R3c6 {[%emt 0:00:00]} 24. Nfxd5 {[%emt 0:02:17]} Nxd5 {[%emt 0:10:30]} 25. Nxd5 {[%emt 0:27:55]} Kf8 {[%emt 0:00:00]} 26. Ne3 {[%emt 0:00:00]} Bd7 {[%emt 0:00:00]} 27. c4 {[%emt 0:00:00]} Ne8 {[%emt 0:00:00]} 28. Be4 {[%emt 0:00:00]} Rb6 {[%emt 0:00:00]} 29. Rb1 {[%emt 0:02:00]} Rb4 {[%emt 0:00:00]} 30. Nd5 {[%emt 0:00:00]} Rcxc4 {[%emt 0:00:00]} 31. bxc4 {[%emt 0:00:00]} Rxb1+ {[%emt 0:00:00]} 32. Bxb1 {[%emt 0:00:00]} 1-0

[Event "XIII Mediterranean Championship 2023"]
[Site "Castell-Platja d Aro"]
[Date "2023.11.05"]
[Round "2.32"]
[White "Hernando Rodrigo, Lourdes"]
[Black "Canigueral Salvado, Jaume"]
[Result "0-1"]
[ECO "D02"]
[WhiteElo "1625"]
[BlackElo "1853"]
[Annotator "NA RC"]
[PlyCount "66"]
[EventDate "2023.10.26"]
[EventType "swiss"]
[EventCountry "ESP"]
[SourceTitle "playchess.com"]
[Source "ChessBase"]
[SourceQuality "1"]
[TimeControl "5400+30"]

1. d4 {[%emt 0:03:18]} d5 {[%emt 0:00:40]} 2. Bf4 {[%emt 0:00:10]} e6 {[%emt 0:00:36]} 3. e3 {[%emt 0:00:14]} Nf6 {[%emt 0:01:13]} 4. Nf3 {[%emt 0:00:20]} a6 {[%emt 0:01:26]} 5. Bd3 {[%emt 0:02:21]} c5 {[%emt 0:00:42]} 6. c3 {[%emt 0:00:20]} Nc6 {[%emt 0:01:12]} 7. Nbd2 {[%emt 0:02:16]} Be7 {[%emt 0:02:41]} 8. a4 {[%emt 1:25:31]} h6 {[%emt 0:03:24]} 9. Ne5 {[%emt 0:00:00]} Bd6 {[%emt 0:03:32]} 10. Nxc6 {[%emt 0:00:00]} bxc6 {[%emt 1:20:04]} 11. Bg3 {[%emt 0:00:00]} cxd4 {[%emt 0:00:00]} 12. exd4 {[%emt 0:00:00]} c5 {[%emt 0:00:00]} 13. dxc5 {[%emt 0:00:00]} Bxc5 {[%emt 0:00:00]} 14. Be5 {[%emt 0:00:00]} Bd6 {[%emt 0:00:00]} 15. Nf3 {[%emt 0:00:00]} Bxe5 {[%emt 0:00:00]} 16. Nxe5 {[%emt 0:00:00]} Qb6 {[%emt 0:00:00]} 17. Qe2 {[%emt 0:00:00]} Bb7 {[%emt 0:00:00]} 18. O-O {[%emt 0:00:00]} O-O {[%emt 0:00:00]} 19. Rfe1 {[%emt 0:00:00]} Qc7 {[%emt 0:04:30]} 20. c4 {[%emt 0:00:00]} dxc4 {[%emt 0:00:00]} 21. Nxc4 {[%emt 0:00:00]} Rfd8 {[%emt 0:00:00]} 22. Rac1 {[%emt 0:00:00]} Qc6 {[%emt 0:00:00]} 23. f3 {[%emt 0:00:00]} Qxa4 {[%emt 0:00:00]} 24. Kh1 {[%emt 0:00:00]} Qb4 {[%emt 0:00:00]} 25. Ne5 {[%emt 0:00:00]} Rac8 {[%emt 0:00:00]} 26. Bb1 {[%emt 0:00:00]} Rxc1 {[%emt 0:00:00]} 27. Rxc1 {[%emt 0:00:00]} Rd2 {[%emt 0:00:00]} 28. Qe3 {[%emt 0:03:15]} Qxb2 {[%emt 0:00:00]} 29. Rg1 {[%emt 0:03:12]} Bd5 {[%emt 0:00:00]} 30. Qc5 {[%emt 0:01:14]} g6 {[%emt 0:00:00]} 31. Qe7 {[%emt 0:01:51]} Qxe5 {[%emt 0:00:00]} 32. Qd8+ {[%emt 0:00:43]} Kg7 {[%emt 0:00:00]} 33. Qe7 {[%emt 0:00:43]} Re2 {[%emt 0:07:00]} 0-1

[Event "XIII Mediterranean Championship 2023"]
[Site "Castell-Platja d Aro"]
[Date "2023.11.05"]
[Round "3.1"]
[White "Ayats Llobera, Gerard"]
[Black "Gines Esteo, Pedro Antonio"]
[Result "1/2-1/2"]
[ECO "B19"]
[WhiteElo "2442"]
[BlackElo "2490"]
[Annotator "RC"]
[PlyCount "25"]
[EventDate "2023.10.26"]
[EventType "swiss"]
[EventCountry "ESP"]
[SourceTitle "playchess.com"]
[Source "ChessBase"]
[SourceQuality "1"]
[TimeControl "5400+30"]

1. e4 {[%emt 0:02:02]} c6 {[%emt 0:00:39]} 2. d4 {[%emt 0:00:08]} d5 {[%emt 0:00:13]} 3. Nc3 {[%emt 0:00:05]} dxe4 {[%emt 0:00:19]} 4. Nxe4 {[%emt 0:00:06]} Bf5 {[%emt 0:00:35]} 5. Ng3 {[%emt 0:00:05]} Bg6 {[%emt 0:00:05]} 6. h4 {[%emt 0:00:02]} h6 {[%emt 0:00:13]} 7. Nf3 {[%emt 0:00:13]} Nd7 {[%emt 0:06:41]} 8. h5 {[%emt 0:00:14]} Bh7 {[%emt 0:00:04]} 9. Bd3 {[%emt 0:00:09]} Bxd3 {[%emt 0:00:05]} 10. Qxd3 {[%emt 0:00:05]} e6 {[%emt 0:00:10]} 11. Bd2 {[%emt 0:00:15]} Ngf6 {[%emt 0:00:57]} 12. O-O-O {[%emt 0:00:07]} Qc7 {[%emt 0:06:06]} 13. Ne4 {[%emt 0:01:54]} 1/2-1/2

[Event "XIII Mediterranean Championship 2023"]
[Site "Castell-Platja d Aro"]
[Date "2023.11.05"]
[Round "3.2"]
[White "Garriga Cazorla, Pere"]
[Black "Gilevych, Artem"]
[Result "1-0"]
[ECO "D41"]
[WhiteElo "2459"]
[BlackElo "2416"]
[Annotator "RC"]
[PlyCount "81"]
[EventDate "2023.10.26"]
[EventType "swiss"]
[EventCountry "ESP"]
[SourceTitle "playchess.com"]
[Source "ChessBase"]
[SourceQuality "1"]
[TimeControl "5400+30"]

1. Nf3 {[%emt 0:02:45]} d5 {[%emt 0:00:16]} 2. c4 {[%emt 0:00:06]} e6 {[%emt 0:00:33]} 3. d4 {[%emt 0:00:07]} Nf6 {[%emt 0:00:44]} 4. Nc3 {[%emt 0:00:06]} c5 {[%emt 0:00:15]} 5. cxd5 {[%emt 0:00:26]} cxd4 {[%emt 0:00:27]} 6. Qa4+ {[%emt 0:01:36]} Bd7 {[%emt 0:01:34]} 7. Qxd4 {[%emt 0:00:08]} exd5 {[%emt 0:00:35]} 8. Bg5 {[%emt 0:02:15]} Nc6 {[%emt 0:06:43]} 9. Qd3 {[%emt 0:01:41]} Be6 {[%emt 0:08:34]} 10. e3 {[%emt 0:01:32]} h6 {[%emt 0:00:27]} 11. Bh4 {[%emt 0:03:31]} g5 {[%emt 0:00:23]} 12. Bg3 {[%emt 0:00:24]} Bg7 {[%emt 0:00:08]} 13. Be2 {[%emt 0:04:16]} Ne4 {[%emt 0:02:20]} 14. Rd1 {[%emt 0:08:23]} O-O {[%emt 0:25:31]} 15. O-O {[%emt 0:06:44]} Nxg3 {[%emt 0:04:55]} 16. hxg3 {[%emt 0:00:17]} g4 {[%emt 0:09:00]} 17. Nh4 {[%emt 0:01:22]} Qg5 {[%emt 0:06:28]} 18. Nxd5 {[%emt 0:12:04]} Rad8 {[%emt 0:01:54]} 19. e4 {[%emt 0:00:02]} Nb4 {[%emt 0:01:18]} 20. Qb3 {[%emt 0:05:00]} Nxd5 {[%emt 0:01:46]} 21. exd5 {[%emt 0:00:14]} Bxd5 {[%emt 0:02:44]} 22. Bc4 {[%emt 0:00:01]} Be4 {[%emt 0:05:46]} 23. Rfe1 {[%emt 0:02:51]} Rxd1 {[%emt 0:00:48]} 24. Rxd1 {[%emt 0:00:01]} Kh8 {[%emt 0:09:57]} 25. Kh2 {[%emt 0:09:13]} Be5 {[%emt 0:03:52]} 26. Kg1 {[%emt 0:01:35]} Qf6 {[%emt 0:00:01]} 27. Bd5 {[%emt 0:02:07]} Bh7 {[%emt 0:00:06]} 28. Qc4 {[%emt 0:00:47]} Bxb2 {[%emt 0:02:27]} 29. Be4 {[%emt 0:03:36]} Bxe4 {[%emt 0:03:24]} 30. Qxe4 {[%emt 0:00:10]} Rd8 {[%emt 0:00:22]} 31. Rxd8+ {[%emt 0:01:13]} Qxd8 {[%emt 0:00:01]} 32. Qxg4 {[%emt 0:00:01]} Bf6 {[%emt 0:01:03]} 33. Nf5 {[%emt 0:01:48]} Kh7 {[%emt 0:01:31]} 34. Qh5 {[%emt 0:01:21]} Qf8 {[%emt 0:00:05]} 35. Kh2 {[%emt 0:00:04]} Bg7 {[%emt 0:00:34]} 36. Qg4 {[%emt 0:00:07]} b6 {[%emt 0:00:38]} 37. Qe4 {[%emt 0:02:01]} Kg8 {[%emt 0:00:25]} 38. Qb7 {[%emt 0:03:29]} Bf6 {[%emt 0:01:09]} 39. Qxa7 {[%emt 0:00:45]} Qc5 {[%emt 0:00:24]} 40. Nxh6+ {[%emt 0:00:58]} Kh8 {[%emt 0:00:07]} 41. Qxf7 {[%emt 0:00:26]} 1-0

[Event "XIII Mediterranean Championship 2023"]
[Site "Castell-Platja d Aro"]
[Date "2023.11.05"]
[Round "3.3"]
[White "Alexakis, Dimitris"]
[Black "Trepat Herranz, Joan"]
[Result "0-1"]
[ECO "C95"]
[WhiteElo "2458"]
[BlackElo "2385"]
[Annotator "RC"]
[PlyCount "116"]
[EventDate "2023.10.26"]
[EventType "swiss"]
[EventCountry "ESP"]
[SourceTitle "playchess.com"]
[Source "ChessBase"]
[SourceQuality "1"]
[TimeControl "5400+30"]

1. e4 {[%emt 1:31:00]} e5 {[%emt 1:31:00]} 2. Nf3 {[%emt 0:00:30]} Nc6 {[%emt 0:00:30]} 3. Bb5 {[%emt 0:00:30]} a6 {[%emt 0:00:30]} 4. Ba4 {[%emt 0:00:30]} Nf6 {[%emt 0:00:30]} 5. O-O {[%emt 0:00:30]} Be7 {[%emt 0:00:30]} 6. Re1 {[%emt 0:00:30]} b5 {[%emt 0:00:30]} 7. Bb3 {[%emt 0:00:30]} d6 {[%emt 0:00:30]} 8. c3 {[%emt 0:00:30]} O-O {[%emt 0:00:30]} 9. h3 {[%emt 0:00:30]} Nb8 {[%emt 0:00:30]} 10. d4 {[%emt 0:00:30]} Nbd7 {[%emt 0:00:30]} 11. Nbd2 {[%emt 0:00:30]} Bb7 {[%emt 0:00:30]} 12. Bc2 {[%emt 0:00:30]} Re8 {[%emt 0:00:30]} 13. Nf1 {[%emt 0:00:30]} Bf8 {[%emt 0:00:30]} 14. Ng3 {[%emt 0:00:30]} g6 {[%emt 0:00:30]} 15. b3 {[%emt 0:00:30]} Nb6 {[%emt 0:00:30]} 16. Rb1 {[%emt 0:00:30]} a5 {[%emt 0:00:30]} 17. Bd3 {[%emt 0:00:30]} b4 {[%emt 0:00:30]} 18. Bd2 {[%emt 0:00:30]} Nfd7 {[%emt 0:00:30]} 19. Qc2 {[%emt 0:00:30]} exd4 {[%emt 0:00:30]} 20. cxd4 {[%emt 0:00:30]} c5 {[%emt 0:00:30]} 21. Bb5 {[%emt 0:00:30]} cxd4 {[%emt 0:00:30]} 22. Bg5 {[%emt 0:00:30]} Qc8 {[%emt 0:00:30]} 23. Qd2 {[%emt 0:00:30]} Bc6 {[%emt 0:00:30]} 24. Bxc6 {[%emt 0:00:30]} Qxc6 {[%emt 0:00:30]} 25. Rbc1 {[%emt 0:00:30]} Nc5 {[%emt 0:00:30]} 26. Nxd4 {[%emt 0:00:30]} Qb7 {[%emt 0:00:30]} 27. f3 {[%emt 0:00:30]} Ne6 {[%emt 0:00:30]} 28. Nxe6 {[%emt 0:00:30]} Rxe6 {[%emt 0:00:30]} 29. Ne2 {[%emt 0:00:30]} Ree8 {[%emt 0:00:30]} 30. Kh1 {[%emt 0:00:30]} d5 {[%emt 0:00:30]} 31. Qf4 {[%emt 0:00:30]} dxe4 {[%emt 0:00:30]} 32. Ng3 {[%emt 0:00:30]} exf3 {[%emt 0:00:30]} 33. Ne4 {[%emt 0:00:30]} fxg2+ {[%emt 0:00:30]} 34. Kh2 {[%emt 0:00:30]} Nd5 {[%emt 0:00:30]} 35. Qf3 {[%emt 0:00:30]} g1=Q+ {[%emt 0:00:30]} 36. Kxg1 {[%emt 0:00:30]} Qb6+ {[%emt 0:00:30]} 37. Kh1 {[%emt 0:00:30]} f5 {[%emt 0:00:30]} 38. Ng3 {[%emt 0:00:30]} Nc3 {[%emt 0:00:30]} 39. h4 {[%emt 0:00:30]} Qb5 {[%emt 0:00:30]} 40. Rxe8 {[%emt 0:00:30]} Rxe8 {[%emt 0:00:30]} 41. h5 {[%emt 0:00:30]} Re6 {[%emt 0:00:30]} 42. Rc2 {[%emt 0:00:30]} Qc6 {[%emt 0:00:30]} 43. Kg2 {[%emt 0:00:30]} Kf7 {[%emt 0:00:30]} 44. Bd8 {[%emt 0:00:30]} Qxf3+ {[%emt 0:00:30]} 45. Kxf3 {[%emt 0:00:30]} Rd6 {[%emt 0:00:30]} 46. Bc7 {[%emt 0:00:30]} Rd3+ {[%emt 0:00:30]} 47. Kg2 {[%emt 0:00:30]} Bd6 {[%emt 0:00:30]} 48. Bxd6 {[%emt 0:00:30]} Rxd6 {[%emt 0:00:30]} 49. a3 {[%emt 0:00:30]} Rd3 {[%emt 0:00:30]} 50. axb4 {[%emt 0:00:30]} axb4 {[%emt 0:00:30]} 51. Nf1 {[%emt 0:00:30]} Kf6 {[%emt 0:00:30]} 52. Rc1 {[%emt 0:00:30]} Rd1 {[%emt 0:00:30]} 53. Rxd1 {[%emt 0:00:30]} Nxd1 {[%emt 0:00:30]} 54. Kf3 {[%emt 0:00:30]} Ke5 {[%emt 0:00:30]} 55. Ke2 {[%emt 0:00:30]} Nc3+ {[%emt 0:00:30]} 56. Kd3 {[%emt 0:00:30]} g5 {[%emt 0:00:30]} 57. Kc4 {[%emt 0:00:30]} Na2 {[%emt 0:00:30]} 58. Ne3 {[%emt 0:00:30]} g4 {[%emt 0:00:30]} 0-1

[Event "XIII Mediterranean Championship 2023"]
[Site "Castell-Platja d Aro"]
[Date "2023.11.05"]
[Round "3.4"]
[White "Lazaro Pujol, Abel"]
[Black "Eugene, Floryan"]
[Result "0-1"]
[ECO "C54"]
[WhiteElo "2289"]
[BlackElo "2426"]
[Annotator "RC"]
[PlyCount "88"]
[EventDate "2023.10.26"]
[EventType "swiss"]
[EventCountry "ESP"]
[SourceTitle "playchess.com"]
[Source "ChessBase"]
[SourceQuality "1"]
[TimeControl "5400+30"]

1. e4 {[%emt 0:00:03]} e5 {[%emt 0:01:27]} 2. Nf3 {[%emt 0:00:29]} Nc6 {[%emt 0:00:03]} 3. Bc4 {[%emt 0:00:33]} Nf6 {[%emt 0:00:05]} 4. d3 {[%emt 0:00:15]} Bc5 {[%emt 0:00:06]} 5. O-O {[%emt 0:00:12]} d6 {[%emt 0:00:03]} 6. c3 {[%emt 0:00:17]} a5 {[%emt 0:00:17]} 7. Re1 {[%emt 0:00:45]} Ba7 {[%emt 0:00:25]} 8. Bb3 {[%emt 0:02:36]} O-O {[%emt 0:07:11]} 9. h3 {[%emt 0:00:21]} Be6 {[%emt 0:02:50]} 10. Bc2 {[%emt 0:08:30]} h6 {[%emt 0:15:27]} 11. d4 {[%emt 0:03:27]} exd4 {[%emt 0:04:50]} 12. cxd4 {[%emt 0:00:30]} d5 {[%emt 0:05:08]} 13. e5 {[%emt 0:01:18]} Ne4 {[%emt 0:00:02]} 14. Nc3 {[%emt 0:01:32]} f5 {[%emt 0:00:34]} 15. exf6 {[%emt 0:04:28]} Qxf6 {[%emt 0:00:55]} 16. Nxd5 {[%emt 0:08:44]} Bxd5 {[%emt 0:02:32]} 17. Bxe4 {[%emt 0:00:41]} Rad8 {[%emt 0:00:42]} 18. Bxd5+ {[%emt 0:04:28]} Rxd5 {[%emt 0:00:06]} 19. Qb3 {[%emt 0:00:31]} Qd6 {[%emt 0:05:31]} 20. Re4 {[%emt 0:06:43]} Kh8 {[%emt 0:11:46]} 21. Bf4 {[%emt 0:02:53]} Qd7 {[%emt 0:02:47]} 22. Qxb7 {[%emt 0:07:21]} Nxd4 {[%emt 0:11:32]} 23. Qxa7 {[%emt 0:29:56]} Nxf3+ {[%emt 0:02:39]} 24. gxf3 {[%emt 0:01:53]} Qxh3 {[%emt 0:01:41]} 25. Re5 {[%emt 0:07:57]} Rd6 {[%emt 0:07:34]} 26. Bg3 {[%emt 0:04:47]} Rg6 {[%emt 0:00:04]} 27. Re2 {[%emt 0:01:16]} Rf4 {[%emt 0:02:50]} 28. Qa8+ {[%emt 0:01:33]} Kh7 {[%emt 0:00:05]} 29. Qd5 {[%emt 0:00:17]} Rh4 {[%emt 0:02:28]} 30. f4 {[%emt 0:00:22]} Qh2+ {[%emt 0:00:04]} 31. Kf1 {[%emt 0:00:06]} Qh1+ {[%emt 0:00:03]} 32. Qxh1 {[%emt 0:00:30]} Rxh1+ {[%emt 0:00:02]} 33. Kg2 {[%emt 0:00:05]} Rxa1 {[%emt 0:00:04]} 34. b3 {[%emt 0:01:01]} Rf6 {[%emt 0:01:39]} 35. Rc2 {[%emt 0:01:05]} c6 {[%emt 0:01:21]} 36. Kf3 {[%emt 0:00:30]} Kg8 {[%emt 0:00:30]} 37. Ke4 {[%emt 0:00:32]} Kf7 {[%emt 0:00:12]} 38. f5 {[%emt 0:00:32]} Re1+ {[%emt 0:00:06]} 39. Kd3 {[%emt 0:00:23]} Rxf5 {[%emt 0:00:43]} 40. Rxc6 {[%emt 0:00:06]} Rd5+ {[%emt 0:00:18]} 41. Kc4 {[%emt 0:00:42]} Rd2 {[%emt 0:00:12]} 42. Rc7+ {[%emt 0:00:20]} Re7 {[%emt 0:00:07]} 43. Rxe7+ {[%emt 0:00:34]} Kxe7 {[%emt 0:00:04]} 44. a4 {[%emt 0:00:05]} Kd7 {[%emt 0:00:36]} 0-1

[Event "XIII Mediterranean Championship 2023"]
[Site "Castell-Platja d Aro"]
[Date "2023.11.05"]
[Round "3.5"]
[White "Alsina Leal, Daniel"]
[Black "Rodriguez Redondo, Adhara"]
[Result "1-0"]
[ECO "E05"]
[WhiteElo "2531"]
[BlackElo "2117"]
[Annotator "RC"]
[PlyCount "113"]
[EventDate "2023.10.26"]
[EventType "swiss"]
[EventCountry "ESP"]
[SourceTitle "playchess.com"]
[Source "ChessBase"]
[SourceQuality "1"]
[TimeControl "5400+30"]

1. Nf3 {[%emt 0:00:04]} d5 {[%emt 0:00:08]} 2. g3 {[%emt 0:00:14]} Nf6 {[%emt 0:01:28]} 3. Bg2 {[%emt 0:00:05]} e6 {[%emt 0:00:11]} 4. O-O {[%emt 0:00:38]} Be7 {[%emt 0:00:04]} 5. d4 {[%emt 0:00:18]} O-O {[%emt 0:00:11]} 6. c4 {[%emt 0:00:09]} dxc4 {[%emt 0:00:07]} 7. Qc2 {[%emt 0:00:15]} a6 {[%emt 0:00:04]} 8. a4 {[%emt 0:00:17]} Bd7 {[%emt 0:00:05]} 9. Qxc4 {[%emt 0:00:11]} Bc6 {[%emt 0:00:33]} 10. Bg5 {[%emt 0:00:16]} Bd5 {[%emt 0:16:32]} 11. Qc2 {[%emt 0:01:08]} Be4 {[%emt 0:00:06]} 12. Qc1 {[%emt 0:00:20]} h6 {[%emt 0:03:46]} 13. Bxf6 {[%emt 0:00:25]} Bxf6 {[%emt 0:00:14]} 14. Nbd2 {[%emt 0:00:45]} Bxf3 {[%emt 0:02:21]} 15. Bxf3 {[%emt 0:00:29]} c6 {[%emt 0:11:28]} 16. e3 {[%emt 0:00:30]} a5 {[%emt 0:01:19]} 17. h4 {[%emt 0:00:50]} Na6 {[%emt 0:04:12]} 18. h5 {[%emt 0:02:32]} Nb4 {[%emt 0:03:24]} 19. Nc4 {[%emt 0:07:42]} Qc7 {[%emt 0:53:47]} 20. Rd1 {[%emt 0:01:25]} Rfd8 {[%emt 0:00:00]} 21. Qb1 {[%emt 0:11:57]} c5 {[%emt 0:00:00]} 22. dxc5 {[%emt 0:06:25]} Qxc5 {[%emt 0:00:00]} 23. Qe4 {[%emt 0:01:57]} Rd5 {[%emt 0:00:00]} 24. Rab1 {[%emt 0:19:39]} Rad8 {[%emt 0:00:00]} 25. Qg4 {[%emt 0:01:50]} Rxd1+ {[%emt 0:00:00]} 26. Rxd1 {[%emt 0:00:14]} Nd5 {[%emt 0:00:00]} 27. Qe4 {[%emt 0:17:40]} Be7 {[%emt 0:00:00]} 28. b3 {[%emt 0:07:00]} Qb4 {[%emt 0:03:32]} 29. Qc2 {[%emt 0:00:46]} b5 {[%emt 0:00:46]} 30. axb5 {[%emt 0:00:48]} Qxb5 {[%emt 0:00:09]} 31. Rd3 {[%emt 0:10:18]} Rc8 {[%emt 0:00:57]} 32. Bxd5 {[%emt 0:01:44]} exd5 {[%emt 0:00:08]} 33. Nd6 {[%emt 0:00:06]} Rxc2 {[%emt 0:00:25]} 34. Nxb5 {[%emt 0:00:04]} Rc5 {[%emt 0:00:56]} 35. Nd4 {[%emt 0:03:01]} Bf6 {[%emt 0:00:26]} 36. Nf5 {[%emt 0:03:05]} Kf8 {[%emt 0:00:37]} 37. g4 {[%emt 0:01:42]} g6 {[%emt 0:00:29]} 38. Ng3 {[%emt 0:00:22]} Bh4 {[%emt 0:00:29]} 39. Ne2 {[%emt 0:00:27]} gxh5 {[%emt 0:00:30]} 40. gxh5 {[%emt 0:00:09]} d4 {[%emt 0:00:29]} 41. Nxd4 {[%emt 0:01:39]} Rxh5 {[%emt 0:00:14]} 42. e4 {[%emt 0:00:19]} Rc5 {[%emt 0:00:49]} 43. Nf5 {[%emt 0:00:17]} Bg5 {[%emt 0:00:30]} 44. f4 {[%emt 0:00:32]} Be7 {[%emt 0:00:32]} 45. Rd7 {[%emt 0:00:25]} Bf6 {[%emt 0:00:26]} 46. Rd6 {[%emt 0:01:30]} Rc1+ {[%emt 0:00:28]} 47. Kg2 {[%emt 0:00:12]} Rc2+ {[%emt 0:00:33]} 48. Kf3 {[%emt 0:00:26]} Be7 {[%emt 0:00:33]} 49. Rd7 {[%emt 0:00:57]} Bf6 {[%emt 0:00:15]} 50. e5 {[%emt 0:00:21]} Ke8 {[%emt 0:00:19]} 51. Rb7 {[%emt 0:00:26]} Rc3+ {[%emt 0:00:46]} 52. Ke4 {[%emt 0:00:18]} Bd8 {[%emt 0:00:21]} 53. Nd6+ {[%emt 0:00:13]} Kf8 {[%emt 0:00:04]} 54. Rxf7+ {[%emt 0:00:37]} Kg8 {[%emt 0:00:04]} 55. Rb7 {[%emt 0:00:51]} Bh4 {[%emt 0:00:48]} 56. Nf5 {[%emt 0:00:26]} Bf2 {[%emt 0:00:43]} 57. e6 {[%emt 0:00:43]} 1-0